bitfinex/quotes_SOLUSD_20240905
["timestamp","ask_amount","ask_price","bid_price","bid_amount"]
[1725549213098,28.7369,132.6,132.55,20.36895592]
[1725549213292,7.5421,132.59,132.55,18.8601]
[1725549213481,7.5427,132.58,132.54,7.5444]
[1725549213881,7.5432,132.57,132.53,7.5454]
[1725549214197,7.5426,132.58,132.54,7.5448]
[1725549214401,7.5422,132.59,132.55,7.5442]
[1725549214696,28.737,132.6,132.56,7.5437]
[1725549214883,7.5425,132.59,132.54,26.4063]
[1725549215197,21.1954,132.6,132.5,6.5314]
[1725549215400,7.5438,132.56,132.51,7.5461]
[1725549215618,7.5433,132.57,132.53,7.5454]
[1725549215902,7.5438,132.56,132.52,26.4105]
[1725549216201,7.5433,132.57,132.52,26.4105]
[1725549216493,20.0,132.56,132.52,26.4105]
[1725549217100,20.0,132.56,132.5,7.5471]
[1725549217280,20.0,132.56,132.49,35.0812]
[1725549217281,20.0,132.58,132.49,18.8686]
[1725549217478,21.1954,132.6,132.49,18.8686]
[1725549217479,7.5438,132.56,132.51,7.5465]
[1725549217678,20.0,132.55,132.52,7.92655048]
[1725549218197,7.5438,132.56,132.51,18.8651]
[1725549218390,7.5432,132.57,132.51,18.8651]
[1725549218588,20.0,132.56,132.51,18.8651]
[1725549218769,20.0,132.56,132.52,7.5459]
[1725549219409,27.5439,132.56,132.51,26.4116]
[1725549219713,7.5444,132.55,132.51,26.4116]
[1725549220705,7.545,132.54,132.48,18.8702]
[1725549220886,7.545,132.54,132.49,7.5472]
[1725549221088,7.5443,132.55,132.5,7.547]
[1725549221410,7.5452,132.54,132.5,18.8673]
[1725549222001,7.5452,132.54,132.5,26.4143]
[1725549222198,7.5443,132.55,132.51,7.5465]
[1725549223901,7.5455,132.53,132.49,7.5476]
[1725549224503,7.5455,132.53,132.47,26.66007845]
[1725549224504,7.546,132.52,132.48,7.5481]
[1725549224816,37.439763,132.5,132.48,7.5481]
[1725549225002,37.439763,132.5,132.49,9.05713706]
[1725549225312,37.439763,132.5,132.49,7.5477]
[1725549228818,37.439763,132.5,132.48,7.5481]
[1725549229018,37.439763,132.5,132.48,8.10555071]
[1725549229231,37.439763,132.5,132.49,7.5477]
[1725549229518,37.439763,132.5,132.48,7.5481]
[1725549230916,37.439763,132.5,132.46,7.5489]
[1725549231112,37.439763,132.5,132.44,25.5352]
[1725549231113,37.439763,132.5,132.45,7.5499]
[1725549231300,7.5478,132.49,132.45,7.5499]
[1725549231893,7.5484,132.48,132.44,26.4258]
[1725549232112,37.439763,132.5,132.41,18.8801]
[1725549232301,7.5489,132.47,132.41,18.8801]
[1725549232502,7.5486,132.48,132.41,18.8801]
[1725549233305,7.5486,132.48,132.44,7.5505]
[1725549233713,7.5486,132.48,132.44,7.5504]
[1725549234810,7.5486,132.48,132.43,26.4283]
[1725549235326,52.5489,132.47,132.43,26.4283]
[1725549235531,7.5496,132.46,132.4,18.8815]
[1725549235706,27.5496,132.46,132.4,18.8815]
[1725549236233,20.0,132.46,132.4,18.8815]
[1725549236412,30.3093517,132.48,132.4,26.4342]
[1725549236413,7.551,132.44,132.4,26.4342]
[1725549237613,20.0,132.43,132.37,35.0217]
[1725549237811,20.0,132.43,132.38,7.5535]
[1725549238014,27.5513,132.43,132.38,7.5535]
[1725549238406,20.0,132.43,132.4,7.5527]
[1725549238606,20.0,132.44,132.4,7.5527]
[1725549239308,27.5506,132.44,132.4,7.5527]
[1725549240334,20.0,132.44,132.36,18.8869]
[1725549240512,45.0,132.43,132.35,37.7779]
[1725549240710,20.0,132.42,132.38,18.8842]
[1725549240930,45.0,132.43,132.38,18.8842]
[1725549241134,20.0,132.42,132.38,18.8842]
[1725549241315,20.0,132.42,132.35,37.7779]
[1725549241316,45.0,132.41,132.35,18.8882]
[1725549241523,7.5534,132.39,132.35,26.4437]
[1725549243139,7.5542,132.38,132.35,18.8882]
[1725549243334,7.556,132.35,132.31,7.5578]
[1725549243520,18.8841,132.39,132.29,6.0044]
[1725549243521,7.5552,132.36,132.32,7.557]
[1725549243837,7.5549,132.37,132.33,7.5568]
[1725549244029,7.5541,132.38,132.34,7.556]
[1725549244234,20.0,132.37,132.3,18.8958]
[1725549244539,52.5547,132.37,132.33,7.5568]
[1725549245529,38.8827,132.4,132.32,18.8931]
[1725549245838,7.555,132.37,132.32,26.4503]
[1725549246631,7.5558,132.35,132.29,18.8971]
[1725549246814,45.0,132.34,132.29,18.8971]
[1725549247324,7.5584,132.31,132.28,0.39870776]
[1725549247524,7.5591,132.29,132.24,7.5618]
[1725549247761,7.5603,132.27,132.23,18.906]
[1725549247924,45.0,132.28,132.19,16.3551]
[1725549248122,20.0,132.27,132.19,16.3551]
[1725549248443,20.0,132.27,132.21,18.9082]
[1725549249536,7.562,132.24,132.18,26.4781]
[1725549249742,45.0,132.26,132.14,19.7788309]
[1725549249949,7.5644,132.2,132.15,7.5669]
[1725549250321,7.5644,132.2,132.14,19.7788309]
[1725549250548,20.0,132.19,132.14,0.8608309]
[1725549250749,7.5666,132.16,132.14,0.8608309]
[1725549251051,45.0,132.18,132.14,0.8608309]
[1725549251232,7.568,132.14,132.09,7.5705]
[1725549251718,20.0,132.13,132.09,7.5705]
[1725549251921,65.0,132.13,132.08,7.5711]
[1725549252147,20.0,132.13,132.08,7.5711]
[1725549252448,20.0,132.13,132.01,22.8225309]
[1725549252449,66.5218,132.12,132.04,7.5734]
[1725549252648,7.5706,132.09,132.03,7.5739]
[1725549252853,7.5717,132.07,132.02,18.935]
[1725549253028,20.0,132.06,132.01,8.4354309]
[1725549253221,20.0,132.06,132.04,7.5733]
[1725549253423,7.57,132.1,132.03,18.9337]
[1725549253649,72.5709,132.09,132.04,7.5733]
[1725549253832,7.5714,132.08,132.03,18.9337]
[1725549254026,20.0,132.07,132.03,26.5077]
[1725549254238,20.0,132.07,132.03,18.9337]
[1725549254419,27.5717,132.07,132.01,8.4356309]
[1725549254623,72.5724,132.06,132.01,8.4356309]
[1725549254850,7.5724,132.06,132.01,8.4356309]
[1725549255026,7.5732,132.05,132.01,0.8608309]
[1725549255235,45.0,132.04,132.01,0.8608309]
[1725549255628,20.0,132.03,132.01,0.8608309]
[1725549255941,27.574,132.03,132.01,0.8608309]
[1725549256129,7.5746,132.02,132.01,0.8608309]
[1725549256330,65.0,132.02,132.01,0.8608309]
[1725549256840,20.0,132.02,132.01,0.8608309]
[1725549257732,65.0,132.02,132.01,0.8608309]
[1725549259530,20.0,132.02,132.01,0.8608309]
[1725549260048,7.5765,131.99,131.95,18.9453]
[1725549260364,7.5765,131.99,131.93,7.5797]
[1725549260528,27.5772,131.98,131.92,18.9508]
[1725549260733,20.0,131.98,131.93,7.5792]
[1725549261363,45.0,131.97,131.92,18.9508]
[1725549261551,20.0,131.96,131.93,7.5797]
[1725549261935,19.96482362,131.96,131.92,26.5311]
[1725549262155,19.96482362,131.96,131.92,18.9508]
[1725549262555,19.96482362,131.96,131.94,7.579]
[1725549262749,45.0,131.95,131.92,18.9508]
[1725549262953,7.5779,131.97,131.92,26.5311]
[1725549263173,18.9379,132.02,131.93,7.5796]
[1725549263174,7.577,131.98,131.93,7.5796]
[1725549263359,7.5764,131.99,131.92,18.9508]
[1725549263744,27.81705216,132.03,131.94,18.947]
[1725549264061,27.81705216,132.03,131.93,37.8986]
[1725549264245,6.494,132.03,131.96,18.9443]
[1725549264869,7.5747,132.02,131.97,7.577]
[1725549265169,6.494,132.03,131.96,18.9443]
[1725549265372,7.85389717,132.06,132.0,7.5757]
[1725549265547,7.5733,132.05,132.0,7.5757]
[1725549265746,7.5735,132.04,132.0,7.5757]
[1725549265947,7.5735,132.04,131.99,26.517]
[1725549266158,7.5735,132.04,132.0,7.5756]
[1725549266354,7.5729,132.05,132.0,7.5756]
[1725549266760,6.1645,132.07,132.01,7.575]
[1725549266761,7.5724,132.06,132.01,7.575]
[1725549267557,7.84756717,132.09,131.97,37.8873]
[1725549267872,14.1045,132.11,132.06,7.5722]
[1725549268258,31.51953174,132.13,132.08,7.5709]
[1725549268447,15.41273174,132.13,132.08,7.5709]
[1725549268641,7.5684,132.13,132.08,7.5709]
[1725549268952,7.5678,132.14,132.09,7.5701]
[1725549269164,7.84332173,132.15,132.05,37.8642]
[1725549269362,16.1065,132.18,132.11,26.4922]
[1725549269675,7.5667,132.16,132.11,26.4922]
[1725549270569,23.94854268,132.18,132.05,37.8642]
[1725549270570,20.0,132.15,132.05,37.8642]
[1725549270771,23.94854268,132.18,132.1,18.9242]
[1725549271282,7.567,132.16,132.11,7.5692]
[1725549272074,11.2758028,132.2,132.05,37.8642]
[1725549272075,6.2639,132.2,132.12,18.9213]
[1725549272276,15.6637,132.23,132.17,7.5657]
[1725549272480,15.6637,132.23,132.16,18.9155]
[1725549272683,7.84033543,132.24,132.21,7.5634]
[1725549272974,6.2213,132.25,132.19,26.4763]
[1725549273190,6.2213,132.25,132.2,7.5641]
[1725549273349,7.83722023,132.26,132.21,7.5636]
[1725549273552,7.5603,132.27,132.21,7.5636]
[1725549274178,22.9465,132.29,132.21,18.908]
[1725549274361,22.9465,132.29,132.23,7.5622]
[1725549274362,7.5597,132.29,132.23,7.5622]
[1725549274562,7.5597,132.29,132.24,7.5619]
[1725549274774,14.44000934,132.3,132.21,18.908]
[1725549274976,7.5616,132.25,132.21,18.908]
[1725549275149,7.5609,132.26,132.21,18.908]
[1725549275471,14.44000934,132.3,132.21,18.908]
[1725549275659,7.5591,132.29,132.21,18.908]
[1725549275981,14.44000934,132.3,132.17,18.914]
[1725549276876,18.8992,132.29,132.17,18.914]
[1725549277077,7.5632,132.22,132.17,26.4794]
[1725549277452,20.0,132.21,132.17,26.4794]
[1725549278149,27.5637,132.21,132.16,7.5664]
[1725549278557,20.0,132.21,132.14,26.4862]
[1725549278885,45.0,132.2,132.14,18.919]
[1725549279053,7.5665,132.17,132.11,18.9235]
[1725549279380,27.5654,132.19,132.14,7.5675]
[1725549279581,20.0,132.19,132.15,7.5667]
[1725549279785,20.0,132.2,132.09,37.8525]
[1725549279988,27.5643,132.2,132.16,7.5664]
[1725549280286,7.5643,132.2,132.16,7.5664]
[1725549280484,27.565,132.19,132.15,18.9168]
[1725549280688,65.0,132.18,132.12,18.9218]
[1725549280902,20.0,132.23,132.12,18.9218]
[1725549281187,45.0,132.22,132.12,18.9218]
[1725549281371,20.0,132.21,132.15,7.5668]
[1725549281558,20.0,132.21,132.14,18.9184]
[1725549281762,27.5638,132.21,132.16,7.5664]
[1725549282897,20.0,132.21,132.16,18.9156]
[1725549283087,27.563,132.23,132.18,7.5649]
[1725549283892,7.5632,132.22,132.18,7.5649]
[1725549284183,20.0,132.21,132.18,7.5649]
[1725549285360,27.5637,132.21,132.17,7.5658]
[1725549285784,7.5643,132.2,132.16,26.482]
[1725549286095,20.0,132.21,132.17,0.45993876]
[1725549286273,15.39643931,132.25,132.2,7.5641]
[1725549286599,7.561,132.26,132.22,7.5631]
[1725549286887,7.5623,132.24,132.2,18.9102]
[1725549287092,47.00024161,132.29,132.18,7.5653]
[1725549287093,7.5627,132.23,132.18,7.5653]
[1725549287471,18.904,132.25,132.17,18.914]
[1725549287782,45.0,132.24,132.15,7.5671]
[1725549287986,7.5638,132.21,132.16,7.5665]
[1725549288170,20.0,132.2,132.16,7.5665]
[1725549288371,27.5644,132.2,132.16,7.5665]
[1725549288996,45.0,132.19,132.15,7.5669]
[1725549289181,52.5649,132.19,132.15,7.5669]
[1725549289983,45.0,132.19,132.16,7.5663]
[1725549290599,52.5653,132.19,132.14,18.9187]
[1725549290895,52.5653,132.19,132.14,26.4859]
[1725549291086,52.5653,132.19,132.15,7.5669]
[1725549291392,27.5643,132.2,132.14,18.9187]
[1725549291591,27.52920968,132.2,132.16,7.5662]
[1725549292398,19.96490968,132.2,132.17,7.5658]
[1725549292586,14.1167,132.22,132.17,7.5658]
[1725549293178,14.1167,132.22,132.18,7.5652]
[1725549293378,7.5636,132.22,132.18,7.5652]
[1725549293588,20.0,132.21,132.18,7.5652]
[1725549294297,20.0,132.21,132.16,18.9159]
[1725549294488,7.5647,132.2,132.16,26.482]
[1725549294692,7.5647,132.2,132.16,18.9159]
[1725549294893,7.5647,132.2,132.16,26.4823]
[1725549295573,7.5635,132.22,132.18,7.565]
[1725549295890,20.0,132.21,132.18,7.565]
[1725549296287,27.5638,132.21,132.17,7.5658]
[1725549296878,7.5643,132.2,132.16,26.4823]
[1725549297203,7.5652,132.19,132.16,18.9159]
[1725549297501,7.5652,132.19,132.15,7.567]
[1725549297702,7.5644,132.2,132.16,7.5665]
[1725549297874,20.0,132.21,132.15,18.9176]
[1725549298072,52.5647,132.2,132.16,7.5665]
[1725549298881,52.5647,132.2,132.15,18.9176]
[1725549298882,45.0,132.2,132.15,18.9176]
[1725549299085,7.5658,132.18,132.15,18.9176]
[1725549299798,27.5651,132.19,132.15,26.4847]
[1725549299998,20.0,132.19,132.15,18.9176]
[1725549300173,20.0,132.2,132.17,18.9149]
[1725549300374,14.00292737,132.25,132.17,18.9149]
[1725549300375,20.0,132.24,132.17,18.9149]
[1725549300603,7.5652,132.19,132.15,7.5669]
[1725549300788,7.5644,132.2,132.16,7.5661]
[1725549300986,7.5638,132.21,132.17,7.5659]
[1725549301299,7.5633,132.22,132.18,7.5651]
[1725549301682,7.5633,132.22,132.18,26.4786]
[1725549301876,7.5628,132.23,132.19,7.5648]
[1725549302072,14.00292737,132.25,132.15,6.5379]
[1725549302073,6.1767,132.25,132.15,6.5379]
[1725549302317,7.82403195,132.28,132.16,45.0]
[1725549302496,26.72373195,132.28,132.19,18.9111]
[1725549302685,7.5627,132.23,132.19,26.4755]
[1725549302879,7.5622,132.24,132.2,7.5642]
[1725549303080,7.5615,132.25,132.21,7.5636]
[1725549303285,7.5609,132.26,132.22,7.5628]
[1725549303576,7.82368465,132.28,132.17,53.68]
[1725549303807,7.562,132.24,132.2,7.564]
[1725549303993,7.562,132.24,132.2,26.4743]
[1725549304195,7.5631,132.23,132.17,72.5938]
[1725549304392,7.5622,132.24,132.17,53.68]
[1725549304591,18.9041,132.25,132.15,6.5379]
[1725549304884,57.82368465,132.28,132.13,16.0152]
[1725549305094,7.5655,132.18,132.13,26.4878]
[1725549305497,6.098,132.22,132.12,6.5302]
[1725549305803,20.0,132.21,132.19,7.5647]
[1725549306022,52.5618,132.25,132.2,7.5642]
[1725549306304,7.5618,132.25,132.21,7.5636]
[1725549306511,6.5169,132.29,132.22,18.9078]
[1725549306708,7.5621,132.24,132.19,23.6175]
[1725549306899,18.9001,132.28,132.18,26.4785]
[1725549307207,7.5621,132.24,132.19,7.5648]
[1725549307414,6.5169,132.29,132.16,37.8305]
[1725549307585,14.0761,132.29,132.22,18.9072]
[1725549307906,14.0761,132.29,132.24,7.5618]
[1725549308805,7.5592,132.29,132.25,7.5613]
[1725549309380,21.3291,132.32,132.23,1.51221013]
[1725549309583,28.887,132.32,132.27,7.5601]
[1725549309821,21.3291,132.32,132.28,7.5596]
[1725549309984,0.8608309,132.34,132.27,0.88148561]
[1725549310187,0.8608309,132.34,132.24,37.81]
[1725549310412,7.5573,132.33,132.28,26.4583]
[1725549310722,0.8608309,132.34,132.24,37.81]
[1725549310913,7.5585,132.31,132.25,18.9027]
[1725549311211,18.8926,132.33,132.25,18.9027]
[1725549311381,7.5595,132.29,132.25,18.9027]
[1725549311812,22.3122,132.3,132.18,21.9597]
[1725549311991,65.0,132.29,132.2,7.5641]
[1725549312199,7.562,132.24,132.19,26.4758]
[1725549312392,7.5627,132.23,132.19,26.4758]
[1725549312581,83.8984,132.29,132.19,26.4758]
[1725549312582,7.5621,132.24,132.19,26.4758]
[1725549312787,65.0,132.29,132.21,18.9086]
[1725549313114,20.0,132.29,132.21,1.51233754]
[1725549313293,20.0,132.29,132.27,7.5601]
[1725549313493,7.5597,132.29,132.25,18.9023]
[1725549313802,38.8933,132.33,132.25,18.9023]
[1725549313803,7.5597,132.28,132.25,18.9023]
[1725549314213,7.559,132.3,132.25,26.4636]
[1725549314412,20.0,132.29,132.25,26.4636]
[1725549314792,20.0,132.29,132.26,7.5605]
[1725549315107,20.0,132.29,132.22,18.9071]
[1725549315315,20.0,132.29,132.19,37.8218]
[1725549315316,15.5579,132.29,132.18,22.6851]
[1725549315489,7.5621,132.24,132.19,26.4756]
[1725549315689,6.2744,132.28,132.16,18.9156]
[1725549315690,26.2744,132.28,132.16,18.9156]
[1725549315904,26.2744,132.28,132.17,7.5657]
[1725549315905,7.5639,132.21,132.17,7.5657]
[1725549316105,45.0,132.27,132.16,26.4821]
[1725549316106,7.5643,132.2,132.16,26.4821]
[1725549316308,18.9046,132.25,132.16,18.9156]
[1725549316517,7.5644,132.2,132.16,26.4821]
[1725549317110,20.0,132.24,132.17,7.5655]
[1725549317328,7.5638,132.21,132.16,26.4819]
[1725549317501,7.5649,132.19,132.13,18.9202]
[1725549317699,7.5649,132.19,132.14,7.5673]
[1725549317912,7.5649,132.19,132.15,7.5671]
[1725549318444,7.5644,132.2,132.15,7.5671]
[1725549318602,20.0,132.19,132.15,7.5671]
[1725549318912,7.5637,132.21,132.15,18.9174]
[1725549319109,72.5644,132.2,132.15,18.9174]
[1725549319312,45.0,132.19,132.09,43.8654]
[1725549319511,20.0,132.18,132.09,26.4962]
[1725549319707,7.5666,132.16,132.09,18.9261]
[1725549319904,20.0,132.15,132.09,18.9261]
[1725549320333,20.0,132.15,132.13,7.5681]
[1725549320539,20.0,132.16,132.12,7.5687]
[1725549321015,27.5665,132.16,132.12,7.5688]
[1725549321409,20.0,132.16,132.13,7.5681]
[1725549321609,20.0,132.16,132.12,7.5687]
[1725549321904,7.5674,132.15,132.11,18.9225]
[1725549322120,7.5674,132.15,132.11,26.4918]
[1725549322327,7.5683,132.13,132.08,18.927]
[1725549322627,45.0,132.14,132.09,7.5705]
[1725549322628,52.5677,132.14,132.09,7.5705]
[1725549323250,20.0,132.16,132.1,18.924]
[1725549323440,7.5653,132.19,132.13,7.5682]
[1725549323728,20.0,132.18,132.08,37.8555]
[1725549324136,20.0,132.19,132.12,18.9218]
[1725549324427,38.9133,132.19,132.09,18.926]
[1725549324631,6.0759,132.15,132.06,18.9304]
[1725549324814,35.107,132.14,132.07,7.5717]
[1725549325017,35.107,132.14,132.06,26.5026]
[1725549325018,7.5695,132.11,132.06,26.5026]
[1725549325218,7.57,132.1,132.06,26.5026]
[1725549325625,7.5696,132.11,132.06,26.5026]
[1725549325822,7.5696,132.11,132.07,7.5716]
[1725549326025,7.5689,132.12,132.07,7.5716]
[1725549326318,20.0,132.11,132.1,7.57]
[1725549326539,20.0,132.11,132.08,18.9275]
[1725549326841,16.6527,132.18,132.1,18.9245]
[1725549327143,24.2181,132.18,132.13,7.5678]
[1725549327343,24.2181,132.18,132.07,37.856]
[1725549327344,6.4842,132.19,132.15,7.5668]
[1725549327531,6.4842,132.19,132.14,18.9189]
[1725549327842,7.5654,132.18,132.14,18.9189]
[1725549328019,7.5654,132.18,132.14,26.4865]
[1725549328214,7.83257405,132.21,132.13,15.1953]
[1725549328447,14.314974,132.26,132.22,7.563]
[1725549328613,6.4824,132.26,132.22,7.563]
[1725549328813,14.16046856,132.29,132.23,7.5623]
[1725549329036,13.8908,132.29,132.23,7.5623]
[1725549329316,13.8908,132.29,132.22,18.9075]
[1725549329317,6.3317,132.29,132.24,7.5615]
[1725549329515,6.3317,132.29,132.25,7.5614]
[1725549329728,16.3787,132.31,132.22,18.9075]
[1725549330240,14.15950676,132.33,132.25,26.4643]
[1725549330913,7.5586,132.3,132.25,18.9032]
[1725549331118,7.5586,132.3,132.23,7.562]
[1725549331445,20.0,132.29,132.23,7.562]
[1725549331647,20.0,132.29,132.21,18.908]
[1725549331819,20.0,132.3,132.21,18.908]
[1725549332136,20.0,132.3,132.24,18.9045]
[1725549332343,20.0,132.32,132.25,0.93669134]
[1725549332522,20.0,132.32,132.24,18.9045]
[1725549333133,21.71690676,132.33,132.25,7.5614]
[1725549333134,14.15950676,132.33,132.25,7.5614]
[1725549333648,14.15950676,132.33,132.24,18.9045]
[1725549333649,45.0,132.32,132.26,7.5608]
[1725549333949,45.0,132.32,132.21,18.9091]
[1725549334240,7.5591,132.29,132.23,7.5625]
[1725549334431,65.0,132.28,132.21,18.9091]
[1725549334741,65.0,132.28,132.21,26.4723]
[1725549334742,7.5603,132.27,132.21,26.4723]
[1725549335050,27.561,132.26,132.21,18.9091]
[1725549335221,27.561,132.26,132.21,26.4727]
[1725549335416,20.0,132.26,132.21,26.4727]
[1725549335649,20.0,132.26,132.21,18.9091]
[1725549335825,20.0,132.26,132.23,7.562]
[1725549336847,27.5613,132.26,132.21,18.9091]
[1725549337227,52.5616,132.25,132.2,7.5641]
[1725549337430,7.562,132.24,132.19,7.5647]
[1725549337624,72.5627,132.23,132.18,18.9133]
[1725549337822,20.0,132.23,132.19,7.5648]
[1725549338125,20.0,132.23,132.2,7.5642]
[1725549338318,20.0,132.24,132.2,7.5642]
[1725549339139,20.0,132.24,132.21,7.5636]
[1725549339323,20.0,132.24,132.22,7.563]
[1725549339519,23.0217,132.28,132.23,7.5625]
[1725549339747,7.5597,132.28,132.23,7.5625]
[1725549340053,7.5597,132.28,132.24,7.5619]
[1725549340213,7.5597,132.28,132.23,7.5624]
[1725549340548,7.5604,132.27,132.22,26.47]
[1725549340925,19.96485635,132.26,132.22,26.47]
[1725549341330,19.96485635,132.26,132.22,18.907]
[1725549341526,16.1629,132.31,132.22,18.907]
[1725549341732,16.1629,132.31,132.22,26.47]
[1725549342065,7.5606,132.27,132.22,26.47]
[1725549342548,23.96414699,132.31,132.23,7.5625]
[1725549342843,7.5598,132.28,132.23,7.5625]
[1725549343039,45.0,132.27,132.23,7.5625]
[1725549343217,72.5603,132.27,132.23,7.5625]
[1725549343422,20.0,132.27,132.23,7.5625]
[1725549343657,20.0,132.27,132.24,7.562]
[1725549344037,7.80124699,132.31,132.28,18.8986]
[1725549344245,0.8608309,132.34,132.28,18.8986]
[1725549344246,7.5574,132.32,132.28,18.8986]
[1725549344449,0.8608309,132.34,132.28,18.8986]
[1725549344741,0.8608309,132.34,132.3,18.896]
[1725549344954,0.8608309,132.34,132.3,26.4544]
[1725549345242,0.8608309,132.34,132.31,7.558]
[1725549345451,0.8608309,132.34,132.32,7.5573]
[1725549345760,0.8608309,132.34,132.3,26.4541]
[1725549345927,8.4171309,132.34,132.3,18.896]
[1725549346125,20.0,132.33,132.28,7.5595]
[1725549346322,0.8608309,132.34,132.21,44.0122]
[1725549346524,0.8608309,132.34,132.24,18.9042]
[1725549346923,0.8608309,132.34,132.27,7.5602]
[1725549347135,0.8608309,132.34,132.21,44.0122]
[1725549347136,7.5569,132.33,132.29,7.559]
[1725549347349,20.0,132.32,132.28,26.4585]
[1725549347540,27.5575,132.32,132.28,18.899]
[1725549347743,7.5581,132.31,132.27,7.5601]
[1725549347952,20.0,132.3,132.27,7.5601]
[1725549348146,20.0,132.3,132.28,7.5596]
[1725549348556,20.0,132.31,132.28,7.5596]
[1725549349060,27.5583,132.31,132.27,26.4599]
[1725549349265,45.0,132.3,132.27,26.4599]
[1725549349449,20.0,132.29,132.24,18.9039]
[1725549349759,27.5596,132.29,132.24,26.4657]
[1725549350264,27.5596,132.29,132.25,7.5613]
[1725549350637,20.0,132.29,132.22,7.563]
[1725549350837,7.5604,132.27,132.23,7.5624]
[1725549351055,20.0,132.26,132.24,7.562]
[1725549351544,20.0,132.27,132.24,7.562]
[1725549351961,18.8931,132.33,132.2,53.2184]
[1725549351962,20.0,132.28,132.26,7.5607]
[1725549352142,7.5589,132.3,132.26,7.5607]
[1725549352346,20.0,132.29,132.26,7.5607]
[1725549352657,20.0,132.29,132.25,18.9031]
[1725549352856,52.5601,132.28,132.24,7.5616]
[1725549353731,52.5601,132.28,132.24,18.9048]
[1725549353934,20.0,132.32,132.26,7.5608]
[1725549354240,45.0,132.31,132.26,7.5608]
[1725549354457,15.297,132.33,132.23,37.8115]
[1725549354653,22.8542,132.33,132.29,7.559]
[1725549354857,7.5572,132.33,132.29,7.559]
[1725549355166,7.5569,132.33,132.29,7.559]
[1725549355466,8.4172309,132.34,132.3,7.5584]
[1725549355640,0.8608309,132.34,132.31,7.5578]
[1725549357060,0.8608309,132.34,132.31,9.06912855]
[1725549357862,0.8608309,132.34,132.31,7.5577]
[1725549358065,20.8608309,132.34,132.32,7.5573]
[1725549358290,0.8608309,132.34,132.31,7.5578]
[1725549358763,7.5575,132.32,132.28,7.5595]
[1725549360566,0.8608309,132.34,132.31,7.5579]
[1725549360866,0.8608309,132.34,132.29,18.8975]
[1725549361070,7.5568,132.33,132.29,26.4565]
[1725549361239,7.558,132.31,132.27,7.5599]
[1725549361442,45.0,132.32,132.26,18.9012]
[1725549361767,20.0,132.31,132.23,37.8115]
[1725549362064,8.4173309,132.34,132.3,7.5583]
[1725549362266,20.0,132.33,132.3,7.5583]
[1725549362465,0.8608309,132.34,132.31,7.558]
[1725549363043,0.8608309,132.34,132.32,7.5572]
[1725549363676,0.8608309,132.34,132.28,18.8981]
[1725549363975,8.4175309,132.34,132.3,7.5584]
[1725549364767,0.8608309,132.34,132.3,18.8958]
[1725549364973,0.8608309,132.34,132.31,1.51151767]
[1725549365152,0.8608309,132.34,132.32,18.8933]
[1725549365357,0.8608309,132.34,132.33,9.06785329]
[1725549365556,7.5495,132.46,132.41,7.5522]
[1725549365812,7.5495,132.46,132.41,9.06252777]
[1725549365949,7.5495,132.46,132.41,7.5522]
[1725549366357,7.55,132.45,132.4,26.4347]
[1725549366875,7.55,132.45,132.41,7.5522]
[1725549367076,7.55,132.45,132.4,26.4348]